bitfinex-derivatives/quotes_SOLF0:USTF0_20241120
["timestamp","ask_amount","ask_price","bid_price","bid_amount"]
[1732075538022,2.1457,232.75,232.67,2.44]
[1732075539323,2.1457,232.75,232.7,2.1461]
[1732075541437,10.63076728,232.81,232.71,2.1461]
[1732075541731,10.63076728,232.81,232.67,2.44]
[1732075542128,10.63076728,232.83,232.68,10.63076728]
[1732075542730,2.1454,232.79,232.68,10.63076728]
[1732075543227,2.1454,232.79,232.71,2.1461]
[1732075543433,2.1454,232.79,232.68,10.63076728]
[1732075543829,2.1454,232.79,232.71,2.1461]
[1732075544031,2.1454,232.78,232.68,10.63076728]
[1732075544232,10.63076728,232.83,232.68,10.63076728]
[1732075544426,10.63076728,232.8,232.7,2.1461]
[1732075544635,10.63076728,232.8,232.71,2.44]
[1732075544854,10.63076728,232.8,232.72,2.44]
[1732075545332,2.1457,232.75,232.72,2.44]
[1732075545635,10.63076728,232.8,232.72,4.5859]
[1732075546235,2.1456,232.76,232.72,4.5859]
[1732075546639,2.1456,232.76,232.72,2.44]
[1732075546839,2.1456,232.76,232.71,2.1461]
[1732075547034,2.1456,232.76,232.72,2.44]
[1732075547235,2.1458,232.74,232.68,6.80286885]
[1732075547436,6.80286885,232.75,232.69,2.44]
[1732075547833,2.146,232.72,232.69,2.44]
[1732075548136,6.80286885,232.73,232.66,10.63976885]
[1732075548340,6.80286885,232.71,232.67,2.44]
[1732075548842,2.1462,232.7,232.67,2.44]
[1732075549439,6.80286885,232.71,232.66,2.5287]
[1732075549634,6.80286885,232.71,232.67,2.44]
[1732075549635,8.94896885,232.71,232.67,2.44]
[1732075550037,2.1463,232.69,232.68,2.44]
[1732075550348,8.94916885,232.69,232.68,2.44]
[1732075551346,6.80286885,232.69,232.67,2.44]
[1732075551541,6.80286885,232.68,232.66,2.44]
[1732075552647,6.80286885,232.67,232.66,2.44]
[1732075552838,6.80286885,232.67,232.61,0.17871]
[1732075553044,6.80286885,232.65,232.64,2.44]
[1732075553643,6.80286885,232.65,232.62,2.44]
[1732075554137,6.80286885,232.63,232.62,2.44]
[1732075554472,6.80286885,232.63,232.61,0.17871]
[1732075554473,8.94966885,232.63,232.61,0.17871]
[1732075554558,6.80286885,232.63,232.53,2.1477]
[1732075554752,6.80286885,232.61,232.54,2.44]
[1732075555142,4.59274616,232.74,232.45,2.5824]
[1732075555143,6.80286885,232.59,232.45,2.5824]
[1732075555341,6.80286885,232.55,232.48,6.80286885]
[1732075555546,2.1478,232.53,232.47,2.1482]
[1732075555742,8.95066885,232.53,232.48,2.44]
[1732075555945,6.80286885,232.53,232.48,2.44]
[1732075556845,10.65073839,232.57,232.48,2.44]
[1732075557248,12.79813839,232.57,232.48,2.1481]
[1732075557453,10.65073839,232.57,232.48,2.44]
[1732075557683,10.65073839,232.57,232.51,0.23614]
[1732075557852,2.1478,232.53,232.51,0.23614]
[1732075558146,12.85071187,232.54,232.45,2.44]
[1732075558349,10.65073839,232.5,232.45,2.44]
[1732075558545,2.1483,232.47,232.45,2.44]
[1732075558748,10.65073839,232.5,232.45,2.44]
[1732075559250,12.79883839,232.5,232.45,2.44]
[1732075559550,2.1481,232.5,232.39,10.65073839]
[1732075559759,2.1481,232.5,232.4,2.44]
[1732075559952,2.1481,232.5,232.41,2.44]
[1732075560147,2.1482,232.49,232.41,2.44]
[1732075560352,10.65073839,232.53,232.41,2.44]
[1732075560353,10.65073839,232.53,232.45,2.1484]
[1732075560765,2.44,232.63,232.41,13.09073839]
[1732075560766,10.65073839,232.56,232.41,13.09073839]
[1732075560949,10.65073839,232.56,232.45,2.1484]
[1732075561149,10.65073839,232.56,232.46,3.7299]
[1732075561466,10.65073839,232.62,232.52,2.1478]
[1732075561646,10.65073839,232.62,232.53,2.44]
[1732075562452,10.65073839,232.65,232.53,2.44]
[1732075562750,10.65073839,232.68,232.56,10.65073839]
[1732075563062,10.65073839,232.68,232.57,3.6661]
[1732075563409,10.65073839,232.71,232.6,2.147]
[1732075563560,10.65073839,232.71,232.61,2.44]
[1732075564049,10.65073839,232.68,232.61,2.44]
[1732075564247,10.65073839,232.65,232.61,2.44]
[1732075564649,10.65073839,232.62,232.51,1.2755]
[1732075565053,10.65073839,232.62,232.52,2.44]
[1732075566360,2.1472,232.59,232.52,4.5878]
[1732075567657,2.1469,232.63,232.55,2.1475]
[1732075567953,10.65073839,232.65,232.52,2.44]
[1732075568459,10.65073839,232.65,232.56,2.1475]
[1732075568460,2.1469,232.62,232.56,2.1475]
[1732075569255,2.1469,232.62,232.57,2.44]
[1732075570162,10.65073839,232.65,232.57,2.44]
[1732075570359,2.147,232.61,232.57,2.44]
[1732075570962,2.1472,232.59,232.57,2.44]
[1732075571162,10.65073839,232.62,232.57,2.44]
[1732075572364,2.147,232.61,232.57,2.44]
[1732075573358,10.65073839,232.65,232.57,2.44]
[1732075573563,2.1469,232.63,232.57,2.44]
[1732075573755,10.65073839,232.68,232.57,2.44]
[1732075574364,10.65073839,232.65,232.57,2.44]
[1732075574668,2.1471,232.6,232.57,2.44]
[1732075574965,10.65073839,232.65,232.57,2.44]
[1732075576173,10.65073839,232.68,232.57,2.44]
[1732075576566,2.1466,232.65,232.57,4.5873]
[1732075576769,2.1466,232.65,232.57,2.44]
[1732075577467,2.1467,232.64,232.58,2.1473]
[1732075578067,10.65073839,232.65,232.58,2.1473]
[1732075578270,2.1468,232.63,232.58,2.1473]
[1732075579669,2.147,232.61,232.59,2.44]
[1732075579878,10.65073839,232.65,232.59,2.44]
[1732075580267,2.44,232.76,232.59,2.44]
[1732075580268,10.65073839,232.68,232.59,2.44]
[1732075581066,2.1467,232.64,232.59,4.5872]
[1732075581765,2.1466,232.66,232.6,2.1471]
[1732075583671,10.65073839,232.74,232.59,13.09073839]
[1732075583876,10.65073839,232.74,232.6,3.8465]
[1732075584573,10.65073839,232.74,232.66,2.1465]
[1732075584854,10.65073839,232.77,232.67,2.44]
[1732075584973,10.65073839,232.77,232.68,2.44]
[1732075585276,2.1457,232.76,232.7,2.1462]
[1732075585473,2.1457,232.76,232.71,2.44]
[1732075586471,2.1455,232.78,232.71,4.5861]
[1732075586780,2.1455,232.78,232.71,2.44]
[1732075587071,1.0,232.92,232.71,13.09073839]
[1732075587275,10.65073839,232.87,232.72,3.8538]
[1732075587468,10.65073839,232.87,232.74,2.1457]
[1732075587685,2.1451,232.82,232.72,3.8538]
[1732075589270,11.65073839,232.92,232.73,2.44]
[1732075589271,10.65073839,232.78,232.73,2.44]
[1732075590077,2.1457,232.75,232.73,2.44]
[1732075590277,10.65073839,232.78,232.73,2.44]
[1732075590688,10.65073839,232.81,232.73,2.44]
[1732075591273,2.1453,232.8,232.73,2.44]
[1732075591576,10.65073839,232.84,232.73,2.44]
[1732075591769,2.1456,232.77,232.73,2.44]
[1732075594578,10.65073839,232.84,232.73,2.44]
[1732075594879,2.1454,232.79,232.73,2.44]
[1732075595377,10.65073839,232.78,232.74,2.44]
[1732075596573,10.65073839,232.81,232.74,2.44]
[1732075597010,2.1456,232.76,232.74,2.44]
[1732075597173,10.65073839,232.78,232.73,2.44]
[1732075598383,2.1459,232.74,232.73,2.44]
[1732075600491,2.1459,232.73,232.67,2.1464]
[1732075600684,2.1459,232.73,232.68,2.44]
[1732075602587,2.146,232.72,232.68,2.44]
[1732075604388,2.1461,232.72,232.68,2.44]
[1732075605788,2.15427543,232.82,232.62,1.3008]
[1732075605789,6.80552466,232.7,232.62,1.3008]
[1732075606086,2.44,232.81,232.63,2.44]
[1732075606087,6.80552466,232.68,232.63,2.44]
[1732075606286,2.1466,232.66,232.64,2.44]
[1732075606506,6.80552466,232.68,232.65,2.44]
[1732075607288,2.1464,232.67,232.65,2.44]
[1732075608288,2.1465,232.66,232.65,2.44]
[1732075610684,8.95202466,232.66,232.57,2.4944]
[1732075610888,6.80552466,232.64,232.56,2.1474]
[1732075611188,6.80552466,232.64,232.57,2.44]
[1732075611884,6.80552466,232.62,232.57,2.44]
[1732075612386,2.1826096,232.69,232.57,9.24552466]
[1732075612689,6.80552466,232.67,232.59,6.80552466]
[1732075612993,6.80552466,232.65,232.59,6.80552466]
[1732075614390,2.1468,232.64,232.59,6.80552466]
[1732075614587,6.80552466,232.65,232.59,6.80552466]
[1732075614889,2.1468,232.63,232.59,6.80552466]
[1732075615896,6.80552466,232.63,232.52,2.4615]
[1732075616284,2.1471,232.6,232.55,8.95302466]
[1732075616490,6.80552466,232.63,232.55,8.95302466]
[1732075616786,6.80552466,232.63,232.54,6.80552466]
[1732075617787,6.80552466,232.63,232.4,24.87387597]
[1732075617788,2.1478,232.52,232.46,2.1484]
[1732075617986,6.80552466,232.52,232.47,2.44]
[1732075618187,6.80552466,232.52,232.48,2.44]
[1732075618595,2.1479,232.51,232.48,2.44]
[1732075618796,6.80552466,232.52,232.49,2.44]
[1732075619992,2.44,232.62,232.49,2.44]
[1732075620298,6.80552466,232.55,232.49,2.44]
[1732075620500,2.44,232.68,232.54,6.80552466]
[1732075620696,2.44,232.68,232.42,2.4697]
[1732075620697,10.64538935,232.65,232.55,2.44]
[1732075620992,8.5576651,232.64,232.55,2.44]
[1732075621394,2.1471,232.6,232.55,2.44]
[1732075621594,10.64538935,232.65,232.55,2.44]
[1732075622701,2.1473,232.58,232.55,2.44]
[1732075623096,10.64538935,232.59,232.55,2.44]
[1732075623299,2.1479,232.52,232.45,2.4951]
[1732075623499,10.64538935,232.59,232.46,2.44]
[1732075624143,2.1469,232.63,232.47,2.1483]
[1732075624302,10.64538935,232.58,232.47,1.2601]
[1732075624799,10.64538935,232.55,232.46,2.44]
[1732075625700,2.20016818,232.56,232.46,2.44]
[1732075625701,10.64538935,232.52,232.46,2.44]
[1732075625999,10.64538935,232.55,232.46,2.44]
[1732075626493,10.64538935,232.55,232.42,10.64538935]
[1732075626494,2.148,232.5,232.42,10.64538935]
[1732075626695,2.148,232.5,232.4,10.64538935]
[1732075626916,2.148,232.5,232.43,2.44]
[1732075627339,10.64538935,232.55,232.43,4.5886]
[1732075627340,2.1481,232.49,232.43,4.5886]
[1732075627598,10.64538935,232.55,232.43,2.44]
[1732075628602,10.64538935,232.52,232.43,2.44]
[1732075629305,2.1478,232.53,232.43,4.5887]
[1732075629503,10.64538935,232.55,232.43,4.5887]
[1732075629803,2.148,232.5,232.44,2.1485]
[1732075631200,14.93828935,232.68,232.44,10.64538935]
[1732075631407,10.64538935,232.59,232.44,10.64538935]
[1732075631603,2.16344319,232.58,232.44,10.64538935]
[1732075631802,2.148,232.5,232.43,4.5886]
[1732075632115,12.75530006,232.56,232.43,4.5886]
[1732075632807,12.75530006,232.56,232.43,2.44]
[1732075633003,10.64538935,232.59,232.43,13.08538935]
[1732075634120,10.64538935,232.59,232.46,10.64538935]
[1732075634307,10.64538935,232.62,232.47,3.7514]
[1732075634699,2.1475,232.56,232.5,2.148]
[1732075635004,10.64538935,232.62,232.51,2.44]
[1732075635201,10.64538935,232.62,232.53,2.1477]
[1732075635202,2.1472,232.59,232.53,2.1477]
[1732075635402,10.64538935,232.62,232.53,2.1477]
[1732075636104,10.64538935,232.62,232.51,2.44]
[1732075637009,2.1474,232.57,232.52,2.1478]
[1732075637307,10.64538935,232.59,232.51,2.44]
[1732075637805,2.1474,232.57,232.51,2.44]
[1732075638102,10.64538935,232.59,232.51,2.44]
[1732075638308,2.1477,232.54,232.51,2.44]
[1732075639004,10.64538935,232.59,232.51,2.44]
[1732075639650,2.1475,232.56,232.51,2.44]
[1732075640303,2.1476,232.55,232.51,2.44]
[1732075641114,10.64538935,232.65,232.51,2.44]
[1732075641505,10.64538935,232.65,232.51,13.08538935]
[1732075642309,2.1472,232.6,232.53,2.1477]
[1732075642542,10.64538935,232.64,232.51,2.44]
[1732075642714,2.1471,232.61,232.55,2.1475]
[1732075643023,10.64538935,232.67,232.53,10.64538935]
[1732075643407,2.1467,232.64,232.58,2.1472]
[1732075643605,2.1467,232.64,232.59,2.44]
[1732075644207,41.26139915,232.69,232.59,2.44]
[1732075644412,2.1468,232.63,232.59,2.44]
[1732075644807,2.147,232.61,232.59,2.44]
[1732075645004,10.64538935,232.64,232.59,2.44]
[1732075645212,41.26139915,232.69,232.55,2.44]
[1732075645213,10.64538935,232.61,232.55,2.44]
[1732075645416,10.64538935,232.64,232.55,2.44]
[1732075645820,2.147,232.62,232.55,4.5875]
[1732075646014,10.64538935,232.67,232.55,2.44]
[1732075646418,2.1469,232.62,232.56,2.1474]
[1732075646717,10.64538935,232.67,232.55,2.44]
[1732075647122,8.55800645,232.66,232.55,2.44]
[1732075647322,10.64538935,232.64,232.55,2.44]
[1732075647821,10.64538935,232.64,232.49,10.64538935]
[1732075648124,10.64538935,232.64,232.51,2.1479]
[1732075648315,41.26139915,232.69,232.5,2.44]
[1732075648519,10.64538935,232.63,232.5,2.44]
[1732075648822,10.64538935,232.63,232.52,2.1478]
[1732075649117,10.64538935,232.66,232.5,2.44]
[1732075649318,2.1471,232.6,232.55,2.1475]
[1732075649515,8.57033196,232.65,232.56,2.44]
[1732075649717,8.57033196,232.65,232.57,2.44]
[1732075649913,2.1471,232.61,232.57,2.44]
[1732075651021,10.64538935,232.6,232.47,34.7114]
[1732075651218,10.64538935,232.6,232.48,13.08538935]
[1732075651422,11.64538935,232.68,232.51,10.64538935]
[1732075651624,19.15107446,232.67,232.51,10.64538935]
[1732075651838,8.57764335,232.66,232.51,10.64538935]
[1732075652019,2.1468,232.63,232.57,2.1473]
[1732075652216,11.64538935,232.68,232.58,2.44]
[1732075652217,8.57761,232.66,232.58,2.44]
[1732075652421,11.64538935,232.68,232.59,2.44]
[1732075652622,19.15534927,232.67,232.57,2.1473]
[1732075652820,19.15534775,232.66,232.58,2.44]
[1732075653015,8.57957329,232.65,232.58,2.44]
[1732075653223,11.64538935,232.68,232.58,2.44]
[1732075653421,19.16048767,232.67,232.58,2.44]
[1732075653623,19.16048767,232.66,232.58,2.44]
[1732075653827,2.1469,232.62,232.58,2.44]
[1732075654528,2.1473,232.58,232.53,2.44]
[1732075654839,8.58189221,232.63,232.53,2.44]
[1732075655132,2.1473,232.58,232.53,2.44]
[1732075655444,8.58189221,232.63,232.47,34.7114]
[1732075655445,10.64538935,232.61,232.47,34.7114]
[1732075655622,10.64538935,232.58,232.48,2.44]
[1732075656230,8.58724692,232.57,232.48,2.44]
[1732075656425,8.58724692,232.57,232.49,2.1481]
[1732075656426,2.1477,232.54,232.49,2.1481]
[1732075657025,10.73474692,232.56,232.5,2.148]
[1732075657326,2.1475,232.56,232.5,2.148]
[1732075658528,10.73706837,232.56,232.5,2.148]
[1732075658730,2.1475,232.56,232.5,2.148]
[1732075659127,10.64538935,232.55,232.46,2.44]
[1732075659327,19.18346898,232.54,232.47,2.44]
[1732075659537,10.64538935,232.55,232.47,2.44]
[1732075659538,8.59090749,232.53,232.47,2.44]
[1732075659825,10.64538935,232.55,232.43,2.1486]
[1732075660031,19.18594696,232.54,232.44,2.44]
[1732075660220,19.18594696,232.53,232.44,2.44]
[1732075660423,2.1481,232.5,232.44,4.5886]
[1732075661329,19.18785617,232.54,232.44,4.5886]
[1732075661527,19.18785617,232.53,232.44,4.5886]
[1732075661729,19.18785617,232.52,232.44,4.5886]
[1732075661931,19.18785617,232.51,232.44,4.5886]
[1732075662121,8.59405367,232.5,232.44,4.5886]
[1732075662325,10.64538935,232.55,232.44,4.5886]
[1732075662520,19.19158631,232.54,232.44,4.5886]
[1732075662729,19.19158631,232.53,232.44,4.5886]
[1732075662930,19.19158631,232.52,232.44,4.5886]
[1732075663123,8.59571916,232.51,232.38,2.501]
[1732075663326,2.1484,232.46,232.4,2.1489]
[1732075664131,2.148,232.51,232.45,2.1485]
[1732075664330,10.64538935,232.56,232.46,2.44]
[1732075664529,19.19172637,232.55,232.47,2.44]
[1732075664727,19.19172637,232.54,232.47,2.44]
[1732075664930,19.19172637,232.53,232.47,2.44]
[1732075665127,19.19172637,232.52,232.47,2.44]
[1732075665328,2.1481,232.49,232.47,2.44]
[1732075666633,2.148,232.51,232.47,2.44]
[1732075666827,8.59434719,232.52,232.47,2.44]
[1732075667025,10.64538935,232.56,232.47,2.44]
[1732075667244,19.18836923,232.55,232.47,2.44]
[1732075667428,2.1479,232.51,232.47,2.44]
[1732075667632,19.18836923,232.52,232.47,2.44]
[1732075667829,8.59426637,232.51,232.47,2.44]
[1732075668031,8.59426637,232.5,232.47,2.44]
[1732075668339,2.1482,232.48,232.47,2.44]
[1732075673638,3.01650737,232.52,232.47,13.08538935]
[1732075673958,1.0,232.68,232.51,10.64538935]
[1732075673959,11.64538935,232.68,232.51,10.64538935]
[1732075674131,9.05508023,232.67,232.55,2.1475]
[1732075674333,10.64538935,232.64,232.56,2.44]
[1732075674533,9.05480612,232.63,232.57,2.44]
[1732075674734,2.1475,232.56,232.48,2.1482]
[1732075674933,12.83813859,232.57,232.47,2.44]
[1732075675439,1.1874,232.56,232.47,2.44]
[1732075676236,2.1477,232.54,232.47,2.44]
[1732075677039,1.1874,232.56,232.47,2.44]
[1732075677249,2.1478,232.53,232.47,2.44]
[1732075677838,1.1874,232.56,232.47,2.44]
[1732075678143,2.1479,232.52,232.47,2.44]
[1732075678443,10.64538935,232.54,232.43,24.8728846]
[1732075678640,1.1874,232.56,232.44,2.42]
[1732075678641,10.64538935,232.51,232.44,2.42]
[1732075679539,10.64538935,232.51,232.45,2.42]
[1732075681341,2.1482,232.48,232.45,2.42]
[1732075682183,10.64538935,232.51,232.45,2.42]
[1732075682340,2.1483,232.47,232.45,2.42]
[1732075682539,10.64538935,232.51,232.39,2.149]
[1732075682740,10.64538935,232.51,232.4,2.42]
[1732075682945,10.64538935,232.51,232.33,1.1933]
[1732075683150,10.64538935,232.51,232.34,10.64538935]
[1732075683347,10.64538935,232.51,232.34,13.06538935]
[1732075683753,2.1484,232.46,232.38,2.149]
[1732075683945,10.36203043,232.5,232.39,2.42]
[1732075683946,8.18380166,232.49,232.39,2.42]
[1732075684148,8.18380166,232.49,232.4,2.42]
[1732075684149,10.36197991,232.48,232.4,2.42]
[1732075684346,2.1484,232.46,232.4,2.42]
[1732075685142,2.1489,232.41,232.37,2.42]
[1732075685344,2.1489,232.41,232.38,2.42]
[1732075685545,1.202,232.45,232.38,2.42]
[1732075686242,22.20387649,232.45,232.36,2.42]
[1732075686441,22.20387649,232.45,232.34,2.42]
[1732075686442,10.64538935,232.42,232.34,2.42]
[1732075686840,10.64538935,232.42,232.28,10.64538935]
[1732075687053,10.64538935,232.42,232.29,2.42]
[1732075687246,10.64538935,232.39,232.11,23.51711913]
[1732075687446,2.1496,232.33,232.25,2.1503]
[1732075687646,2.1496,232.33,232.26,2.42]
[1732075687883,10.64538935,232.39,232.26,2.42]
[1732075688047,2.1498,232.32,232.25,2.1503]
[1732075688248,10.64538935,232.36,232.26,2.42]
[1732075688655,1.0,232.41,232.26,13.06538935]
[1732075688845,1.0,232.41,232.29,2.1499]
[1732075689056,11.64538935,232.41,232.29,2.1499]
[1732075689250,2.1494,232.36,232.29,2.1499]
[1732075689645,2.1493,232.37,232.28,2.15]
[1732075689845,11.64538935,232.41,232.26,13.06538935]
[1732075690245,1.0,232.41,232.26,13.06538935]
[1732075690454,1.0,232.41,232.29,10.64538935]
[1732075690949,2.149,232.4,232.32,2.1496]
[1732075691163,1.0,232.41,232.33,2.42]
[1732075691448,1.202,232.45,232.33,2.42]
[1732075691643,2.1488,232.42,232.33,4.5695]
[1732075691842,1.202,232.45,232.33,4.5695]
[1732075692441,1.202,232.45,232.33,2.42]
[1732075693148,2.1487,232.43,232.34,2.1494]
[1732075693348,1.202,232.45,232.33,2.42]
[1732075694249,2.1488,232.42,232.35,2.1494]
[1732075694948,1.202,232.45,232.33,2.42]
[1732075695150,1.202,232.45,232.37,2.1492]
[1732075695748,1.202,232.45,232.33,2.42]
[1732075696345,2.1487,232.43,232.36,2.1493]
[1732075696842,3.3505,232.45,232.35,10.64538935]
[1732075697047,1.2682,232.51,232.38,10.64538935]
[1732075697266,1.2682,232.51,232.39,3.6455]
[1732075697442,2.1481,232.5,232.43,2.1486]
[1732075697648,414.81830438,232.54,232.41,10.64538935]
[1732075698746,414.81830438,232.54,232.46,2.1483]
[1732075698948,414.81830438,232.54,232.47,2.42]
[1732075699654,414.81830438,232.54,232.48,2.1482]
[1732075699854,414.81830438,232.54,232.47,2.42]
[1732075700153,414.81830438,232.54,232.52,2.1478]
[1732075700354,414.81830438,232.54,232.53,2.42]
[1732075702155,2.1472,232.59,232.53,2.42]
[1732075704255,10.64538935,232.67,232.53,2.42]
[1732075704466,10.64538935,232.67,232.54,2.5324]
[1732075705257,2.1465,232.67,232.6,2.1471]
[1732075705554,2.1465,232.67,232.61,2.42]
[1732075709158,2.1465,232.67,232.61,4.567]
[1732075710851,2.1466,232.66,232.61,2.42]
[1732075711358,11.88408935,232.7,232.54,2.5324]
[1732075711557,11.88408935,232.7,232.55,2.42]
[1732075711978,11.88408935,232.7,232.56,10.64538935]
[1732075712457,2.1461,232.71,232.65,2.1466]
[1732075712652,2.1461,232.71,232.66,2.42]
[1732075712853,10.64538935,232.76,232.66,2.42]
[1732075713161,2.146,232.72,232.66,2.42]
[1732075713363,10.64538935,232.76,232.66,2.42]
[1732075713865,2.146,232.72,232.66,4.5665]
[1732075714257,1.3155,232.77,232.66,2.42]
[1732075714558,10.64538935,232.81,232.66,2.42]
[1732075714761,2.1453,232.8,232.73,2.1459]
[1732075714978,11.96088935,232.84,232.74,2.42]
[1732075715167,11.96088935,232.84,232.75,2.42]
[1732075715445,2.1449,232.84,232.77,2.1455]
[1732075715571,2.1449,232.84,232.78,2.42]
[1732075716260,10.64538935,232.89,232.74,10.64538935]
[1732075716462,10.64538935,232.83,232.75,2.42]
[1732075716763,10.64538935,232.83,232.76,2.42]
[1732075717859,2.1451,232.82,232.76,2.42]
[1732075718260,10.64538935,232.84,232.76,2.42]
[1732075719061,2.1454,232.79,232.76,2.42]
[1732075719280,10.64538935,232.84,232.76,2.42]
[1732075719469,2.1449,232.84,232.76,2.42]
[1732075719669,10.64538935,232.87,232.76,2.42]
[1732075719859,11.95408935,232.9,232.76,2.42]
[1732075720262,10.64538935,232.87,232.71,10.64538935]
[1732075720465,10.64538935,232.84,232.72,2.42]
[1732075720670,1.2929,232.83,232.72,2.42]
[1732075721274,2.1454,232.79,232.72,4.566]
[1732075721566,10.64538935,232.81,232.7,30.94]
[1732075721771,10.64538935,232.78,232.71,2.42]
[1732075721969,2.1459,232.73,232.71,2.42]
[1732075722660,2.1456,232.77,232.71,2.42]
[1732075722862,1.2929,232.83,232.71,2.42]
[1732075723359,1.2929,232.83,232.74,2.1458]
[1732075723558,1.2929,232.83,232.72,10.64538935]
[1732075723758,1.2929,232.83,232.72,11.88778935]
[1732075724368,1.2929,232.83,232.77,2.1455]
[1732075724668,10.64538935,232.87,232.78,2.42]
[1732075725261,2.1447,232.86,232.79,2.1453]
[1732075726166,2.1446,232.87,232.8,2.1452]
[1732075727170,2.1446,232.87,232.81,2.1451]
[1732075727476,2.1446,232.87,232.82,2.42]
[1732075728264,1.0,232.89,232.82,2.42]
[1732075728569,2.1445,232.89,232.82,2.42]
[1732075728768,1.2912,232.94,232.84,10.64538935]
[1732075728970,2.1443,232.91,232.85,2.1448]
[1732075731473,1.2912,232.94,232.85,2.1448]
[1732075731670,2.1443,232.9,232.84,2.1449]
[1732075732371,10.64538935,232.93,232.79,1.2969]
[1732075732681,10.64538935,232.9,232.8,2.42]
[1732075734276,2.1447,232.87,232.81,2.1451]
[1732075734569,10.64538935,232.9,232.8,2.42]
[1732075736372,1.2912,232.94,232.72,11.88778935]
[1732075736373,10.64538935,232.87,232.72,11.88778935]
[1732075736570,10.64538935,232.92,232.73,2.42]
[1732075736571,10.64538935,232.84,232.73,2.42]
[1732075736767,1.2407,232.83,232.74,2.42]
[1732075737069,1.2407,232.83,232.75,2.42]
[1732075737271,1.2407,232.83,232.69,11.84398935]
[1732075737272,2.1455,232.78,232.76,2.42]
[1732075743580,10.64538935,232.81,232.76,2.42]
[1732075743780,2.1455,232.77,232.76,2.42]
[1732075743972,10.64538935,232.81,232.66,10.64538935]
[1732075744178,10.64538935,232.75,232.67,2.42]
[1732075744688,10.64538935,232.75,232.63,1.2739]
[1732075744881,1.1964,232.74,232.64,2.42]
[1732075745789,2.1459,232.73,232.65,2.1466]
[1732075746085,1.1964,232.74,232.64,2.42]
[1732075746688,1.1964,232.74,232.66,2.1465]
[1732075747486,2.146,232.72,232.66,2.1465]
[1732075747686,1.1964,232.74,232.66,10.64538935]
[1732075747890,1.1944,232.79,232.66,10.64538935]
[1732075748223,1.2311,232.81,232.66,10.64538935]
[1732075748387,2.1456,232.77,232.71,2.146]
[1732075748591,1.2311,232.81,232.72,2.42]
[1732075749294,2.1455,232.77,232.72,2.42]
[1732075750391,1.2311,232.81,232.72,2.42]
[1732075751200,2.1457,232.76,232.72,2.42]
[1732075751594,1.2311,232.81,232.72,2.42]
[1732075751887,1.2311,232.81,232.62,30.92]
[1732075751888,10.64538935,232.76,232.7,2.42]
[1732075752392,1.2311,232.81,232.7,2.42]
[1732075753193,2.1456,232.77,232.71,2.1461]
[1732075754311,10.64538935,232.79,232.71,2.42]
[1732075754533,10.64538935,232.76,232.71,2.42]
[1732075754698,2.146,232.72,232.71,2.42]
[1732075754886,10.64538935,232.79,232.71,2.42]
[1732075755291,2.1456,232.77,232.71,2.42]
[1732075755490,10.64538935,232.79,232.71,2.42]
[1732075755884,2.1457,232.75,232.71,2.42]
[1732075756494,10.64538935,232.79,232.71,2.42]
[1732075756693,10.64538935,232.79,232.66,10.64538935]
[1732075756894,10.64538935,232.75,232.67,2.42]
[1732075757093,10.64538935,232.75,232.63,10.64538935]
[1732075757293,10.64538935,232.75,232.64,2.42]
[1732075757618,10.64538935,232.75,232.64,4.5667]
[1732075757894,10.64538935,232.75,232.62,30.92]
[1732075758090,1.2311,232.81,232.63,2.42]